fUSD/lending_fUSD_20240121
["ID","MTS","AMOUNT","RATE_DAILY","PERIOD"]
[312396506,1705858293200,-500.0,0.00041643,31]
[312396507,1705858293210,-500.0,0.00041643,31]
[312396508,1705858293220,-1514.87,0.00041643,31]
[312396509,1705858293229,-500.0,0.00041643,31]
[312396510,1705858293239,-505.63109043,0.00041643,31]
[312396511,1705858293248,-500.0,0.00041643,31]
[312396512,1705858293258,-687.19,0.00041643,31]
[312396513,1705858293268,-500.0,0.00041643,31]
[312396514,1705858293364,-510.67,0.00041643,31]
[312396515,1705858293375,-500.0,0.00041643,31]
[312396516,1705858293384,-500.0,0.00041643,31]
[312396517,1705858293393,-799.14,0.00041643,31]
[312396518,1705858293402,-598.15,0.00041643,31]
[312396519,1705858293411,-519.97347793,0.00041643,31]
[312396520,1705858293420,-500.0,0.00041643,31]
[312396521,1705858293429,-500.0,0.00041643,31]
[312396522,1705858293442,-500.0,0.00041643,31]
[312396523,1705858293451,-500.0,0.00041643,31]
[312396524,1705858293462,-500.0,0.00041643,31]
[312396525,1705858293471,-423.73005417,0.00041643,31]
[312396526,1705858293481,-500.0,0.00041643,31]
[312396527,1705858293490,-500.0,0.00041643,31]
[312396528,1705858293500,-500.0,0.00041643,31]
[312396529,1705858293509,-943.23,0.00041643,31]
[312396530,1705858293518,-748.3,0.00041643,31]
[312396531,1705858293527,-653.96,0.00041643,31]
[312396532,1705858293537,-717.66,0.00041643,31]
[312396533,1705858293546,-509.53244925,0.00041643,31]
[312396534,1705858293555,-500.93,0.00041643,31]
[312396535,1705858293565,-1085.38,0.00041643,31]
[312396536,1705858293574,-615.42,0.00041643,31]
[312396537,1705858293583,-649.90405518,0.00041643,31]
[312396538,1705858293592,-500.0,0.00041643,31]
[312396539,1705858293602,-506.50739514,0.00041643,31]
[312396540,1705858293612,-500.0,0.00041643,31]
[312396541,1705858293621,-500.0,0.00041643,31]
[312396542,1705858293630,-500.0,0.00041643,31]
[312396543,1705858293639,-500.0,0.00041643,31]
[312396544,1705858293649,-544.45,0.00041643,2]
[312396545,1705858293658,-500.0,0.00041643,31]
[312396546,1705858293667,-500.0,0.00041643,31]
[312396547,1705858293677,-523.44765461,0.00041643,31]
[312396548,1705858293687,-500.0,0.00041643,31]
[312396549,1705858293696,-500.0,0.00041643,31]
[312396550,1705858293707,-500.0,0.00041643,31]
[312396551,1705858293717,-500.0,0.00041643,31]
[312396552,1705858293727,-500.0,0.00041643,31]
[312396553,1705858293736,-791.93,0.00041643,7]
[312396554,1705858293746,-500.0,0.00041643,31]
[312396555,1705858293755,-1089.26,0.00041643,31]
[312396556,1705858293764,-791.68,0.00041643,31]
[312396557,1705858293774,-597.73,0.00041643,31]
[312396558,1705858293784,-529.7529883,0.00041643,31]
[312396559,1705858293793,-500.0,0.00041643,31]
[312396560,1705858293803,-500.0,0.00041643,31]
[312396561,1705858293812,-500.0,0.00041643,31]
[312396562,1705858293822,-500.0,0.00041643,31]
[312396563,1705858293831,-500.0,0.00041643,31]
[312396564,1705858293842,-500.0,0.00041643,31]
[312396565,1705858293851,-500.0,0.00041643,31]
[312396566,1705858293861,-500.0,0.00041643,31]
[312396567,1705858293870,-733.67,0.00041643,31]
[312396568,1705858293880,-500.0,0.00041643,31]
[312396569,1705858293889,-500.0,0.00041643,31]
[312396570,1705858293898,-500.0,0.00041643,31]
[312396571,1705858293907,-634.48,0.00041643,31]
[312396572,1705858293916,-500.0,0.00041643,31]
[312396573,1705858293926,-978.66,0.00041643,31]
[312396574,1705858293935,-500.0,0.00041643,31]
[312396575,1705858293945,-500.0,0.00041643,31]
[312396576,1705858293954,-2489.12,0.00041643,31]
[312396577,1705858293964,-500.0,0.00041643,31]
[312396578,1705858293973,-500.0,0.00041643,31]
[312396579,1705858293983,-500.0,0.00041643,31]
[312396580,1705858293992,-500.0,0.00041643,31]
[312396581,1705858294001,-500.0,0.00041643,31]
[312396582,1705858294010,-802.28,0.00041643,31]
[312396583,1705858294020,-500.0,0.00041643,31]
[312396584,1705858294029,-500.0,0.00041643,31]
[312396585,1705858294038,-500.0,0.00041643,31]
[312396586,1705858294048,-555.8602138,0.00041643,31]
[312396587,1705858294062,-971.0,0.00041643,31]
[312396588,1705858294072,-1114.65,0.00041643,31]
[312396589,1705858294081,-500.0,0.00041643,31]
[312396590,1705858294091,-500.0,0.00041643,31]
[312396591,1705858294101,-632.04,0.00041643,31]
[312396592,1705858294110,-500.0,0.00041643,31]
[312396593,1705858294119,-753.06,0.00041643,31]
[312396594,1705858294129,-500.0,0.00041643,31]
[312396595,1705858294139,-500.0,0.00041643,31]
[312396596,1705858294149,-500.0,0.00041643,31]
[312396597,1705858294158,-500.0,0.00041643,31]
[312396598,1705858294168,-500.0,0.00041643,31]
[312396599,1705858294177,-500.0,0.00041643,31]
[312396600,1705858294186,-500.0,0.00041643,31]
[312396601,1705858294196,-500.0,0.00041643,31]
[312396602,1705858294205,-500.0,0.00041643,31]
[312396603,1705858294214,-500.0,0.00041643,31]
[312396604,1705858294223,-500.0,0.00041643,31]
[312396605,1705858294233,-1398.52,0.00041643,31]
[312396606,1705858294242,-629.95,0.00041643,31]
[312396607,1705858294252,-500.0,0.00041643,31]
[312396608,1705858294262,-500.0,0.00041643,31]
[312396609,1705858294273,-956.47,0.00041643,31]
[312396610,1705858294283,-500.0,0.00041643,31]
[312396611,1705858294293,-500.0,0.00041643,31]
[312396612,1705858294302,-500.0,0.00041643,31]
[312396613,1705858294312,-649.26,0.00041643,31]
[312396614,1705858294321,-502.17469894,0.00041643,31]
[312396615,1705858294331,-892.97,0.00041643,31]
[312396616,1705858294341,-500.0,0.00041643,31]
[312396617,1705858294350,-500.0,0.00041643,31]
[312396618,1705858294359,-460.87528158,0.00041643,31]
[312396619,1705858294368,-500.0,0.00041643,31]
[312396620,1705858294378,-500.0,0.00041643,31]
[312396621,1705858294387,-500.0,0.00041643,31]
[312396622,1705858294396,-500.0,0.00041643,31]
[312396623,1705858294406,-500.0,0.00041643,31]
[312396624,1705858294416,-513.83027871,0.00041643,31]
[312396625,1705858294425,-652.07,0.00041643,31]
[312396626,1705858294435,-500.0,0.00041643,31]
[312396627,1705858294444,-500.0,0.00041643,31]
[312396628,1705858294454,-500.0,0.00041643,31]
[312396629,1705858294463,-500.0,0.00041643,31]
[312396630,1705858294474,-723.49,0.00041643,31]
[312396631,1705858294483,-500.0,0.00041643,31]
[312396632,1705858294494,-1071.67,0.00041643,31]
[312396633,1705858294503,-1235.99,0.00041643,31]
[312396634,1705858294513,-500.0,0.00041643,31]
[312396635,1705858294522,-563.48,0.00041643,31]
[312396636,1705858294531,-500.0,0.00041643,31]
[312396637,1705858294541,-500.0,0.00041643,31]
[312396638,1705858294550,-596.07,0.00041643,31]
[312396639,1705858294560,-500.0,0.00041643,31]
[312396640,1705858294569,-575.88238398,0.00041643,31]
[312396641,1705858294579,-500.0,0.00041643,31]
[312396642,1705858294589,-257.45203173,0.00041643,31]
[312396643,1705858294598,-1710.77,0.00041643,31]
[312396644,1705858294608,-500.0,0.00041643,31]
[312396645,1705858294618,-500.0,0.00041643,31]
[312396646,1705858294627,-500.0,0.00041643,31]
[312396647,1705858294637,-1311.77,0.00041643,31]
[312396648,1705858294647,-727.55,0.00041643,31]
[312396649,1705858294656,-1518.81,0.00041643,31]
[312396650,1705858294666,-500.0,0.00041643,31]
[312396651,1705858294675,-678.7,0.00041643,31]
[312396652,1705858294685,-801.37,0.00041643,20]
[312396653,1705858294695,-500.0,0.00041643,31]
[312396654,1705858294704,-500.0,0.00041643,31]
[312396655,1705858294714,-505.30872792,0.00041643,31]
[312396656,1705858294723,-500.0,0.00041643,31]
[312396657,1705858294732,-500.0,0.00041643,31]
[312396658,1705858294741,-1062.99,0.00041643,31]
[312396659,1705858294751,-500.0,0.00041643,31]
[312396660,1705858294760,-500.0,0.00041643,31]
[312396661,1705858294770,-500.0,0.00041643,31]
[312396662,1705858294780,-210.45226117,0.00041643,31]
[312396663,1705858294789,-509.94927446,0.00041643,31]
[312396664,1705858294798,-500.0,0.00041643,31]
[312396665,1705858294808,-730.53,0.00041643,31]
[312396666,1705858294817,-500.0,0.00041643,31]
[312396667,1705858294826,-683.37,0.00041643,31]
[312396668,1705858294836,-500.0,0.00041643,31]
[312396669,1705858294845,-515.60671085,0.00041643,31]
[312396670,1705858294855,-500.0,0.00041643,31]
[312396671,1705858294864,-639.15,0.00041643,31]
[312396672,1705858294874,-500.0,0.00041643,31]
[312396673,1705858294883,-500.0,0.00041643,31]
[312396674,1705858294893,-500.0,0.00041643,31]
[312396675,1705858294903,-500.0,0.00041643,31]
[312396676,1705858294913,-500.0,0.00041643,31]
[312396677,1705858294923,-500.0,0.00041643,31]
[312396678,1705858294932,-713.6,0.00041643,31]
[312396679,1705858294942,-500.0,0.00041643,31]
[312396680,1705858294953,-176.25070892,0.00041643,31]
[312396681,1705858294963,-522.29,0.00041643,31]
[312396682,1705858294973,-500.0,0.00041643,31]
[312396683,1705858294983,-500.0,0.00041643,31]
[312396684,1705858294994,-511.36547992,0.00041643,31]
[312396685,1705858295003,-1341.01,0.00041643,31]
[312396686,1705858295013,-500.0,0.00041643,31]
[312396687,1705858295023,-815.74,0.00041643,31]
[312396688,1705858295033,-500.0,0.00041643,31]
[312396689,1705858295043,-908.38,0.00041643,31]
[312396690,1705858295055,-500.0,0.00041643,31]
[312396691,1705858295067,-844.72,0.00041643,31]
[312396692,1705858295077,-500.0,0.00041643,31]
[312396693,1705858295087,-506.58943992,0.00041643,31]
[312396694,1705858295097,-500.0,0.00041643,31]
[312396695,1705858295107,-500.0,0.00041643,31]
[312396696,1705858295117,-500.0,0.00041643,31]
[312396697,1705858295128,-500.0,0.00041643,31]
[312396698,1705858295139,-500.0,0.00041643,31]
[312396699,1705858295148,-500.0,0.00041643,31]
[312396700,1705858295158,-625.99,0.00041643,31]
[312396701,1705858295168,-798.26,0.00041643,31]
[312396702,1705858295178,-1236.84,0.00041643,31]
[312396703,1705858295188,-944.0,0.00041643,31]
[312396704,1705858295198,-500.0,0.00041643,31]
[312396705,1705858295208,-500.0,0.00041643,31]
[312396706,1705858295218,-503.87975983,0.00041643,31]
[312396707,1705858295228,-772.74,0.00041643,31]
[312396708,1705858295238,-500.0,0.00041643,31]
[312396709,1705858295247,-674.68,0.00041643,31]
[312396710,1705858295257,-500.0,0.00041643,31]
[312396711,1705858295266,-500.0,0.00041643,31]
[312396712,1705858295276,-677.86,0.00041643,31]
[312396713,1705858295286,-1386.82,0.00041643,31]
[312396714,1705858295296,-575.35,0.00041643,2]
[312396715,1705858295306,-546.59,0.00041643,31]
[312396716,1705858295316,-510.90217032,0.00041643,31]
[312396717,1705858295325,-500.0,0.00041643,31]
[312396718,1705858295335,-1093.4,0.00041643,31]
[312396719,1705858295344,-876.12,0.00041643,31]
[312396720,1705858295354,-1506.33,0.00041643,31]
[312396721,1705858295363,-563.22,0.00041643,31]
[312396722,1705858295373,-775.99,0.00041643,31]
[312396723,1705858295383,-1359.97,0.00041643,31]
[312396724,1705858295392,-500.0,0.00041643,31]
[312396725,1705858295402,-1846.34,0.00041643,31]
[312396726,1705858295412,-706.97,0.00041643,31]
[312396727,1705858295422,-500.0,0.00041643,31]
[312396728,1705858295432,-502.6928588,0.00041643,31]
[312396729,1705858295442,-827.05,0.00041643,31]
[312396730,1705858295452,-500.0,0.00041643,31]
[312396731,1705858295462,-500.0,0.00041643,31]
[312396732,1705858295473,-500.0,0.00041643,31]
[312396733,1705858295483,-162.49161194,0.00041643,31]
[312396734,1705858295493,-500.0,0.00041643,31]
[312396735,1705858295503,-500.0,0.00041643,31]
[312396736,1705858295513,-736.6,0.00041643,31]
[312396737,1705858295524,-1026.28,0.00041643,31]
[312396738,1705858295535,-500.0,0.00041643,31]
[312396739,1705858295545,-1358.53,0.00041643,31]
[312396740,1705858295556,-1261.93,0.00041643,31]
[312396741,1705858295566,-500.0,0.00041643,31]
[312396742,1705858295576,-382.07443707,0.00041643,31]
[312396743,1705858295586,-500.0,0.00041643,31]
[312396744,1705858295596,-500.0,0.00041643,7]
[312396745,1705858295606,-489.62623223,0.00041643,31]
[312396746,1705858295616,-500.0,0.00041643,31]
[312396747,1705858295626,-500.0,0.00041643,31]
[312396748,1705858295636,-1103.53,0.00041643,31]
[312396749,1705858295647,-800.0,0.00041643,30]
[312396750,1705858295657,-500.0,0.00041643,31]
[312396751,1705858295667,-568.36,0.00041643,31]
[312396752,1705858295676,-557.3,0.00041643,31]
[312396753,1705858295686,-500.0,0.00041643,31]
[312396754,1705858295695,-500.0,0.00041643,31]
[312396755,1705858295705,-500.0,0.00041643,31]
[312396756,1705858295715,-500.0,0.00041643,31]
[312396757,1705858295724,-773.33,0.00041643,31]
[312396758,1705858295734,-500.0,0.00041643,31]
[312396759,1705858295744,-500.0,0.00041643,31]
[312396760,1705858295755,-948.55,0.00041643,31]
[312396761,1705858295765,-1341.32,0.00041643,31]
[312396762,1705858295775,-532.88,0.00041643,31]
[312396763,1705858295784,-500.0,0.00041643,31]
[312396764,1705858295794,-501.69208808,0.00041643,31]
[312396765,1705858295803,-500.0,0.00041643,31]
[312396766,1705858295813,-500.0,0.00041643,31]
[312396767,1705858295822,-500.0,0.00041643,31]
[312396768,1705858295832,-500.0,0.00041643,31]
[312396769,1705858295842,-500.0,0.00041643,31]
[312396770,1705858295851,-500.0,0.00041643,7]
[312396771,1705858295861,-500.0,0.00041643,31]
[312396772,1705858295871,-500.0,0.00041643,31]
[312396773,1705858295880,-500.0,0.00041643,31]
[312396774,1705858295890,-713.94,0.00041643,31]
[312396775,1705858295900,-500.0,0.00041643,31]
[312396776,1705858295910,-1009.22,0.00041643,31]
[312396777,1705858295920,-500.0,0.00041643,31]
[312396778,1705858295929,-500.0,0.00041643,31]
[312396779,1705858295939,-500.0,0.00041643,31]
[312396780,1705858295949,-542.43,0.00041643,31]
[312396781,1705858295958,-500.0,0.00041643,31]
[312396782,1705858295968,-500.0,0.00041643,31]
[312396783,1705858295977,-503.77331934,0.00041643,31]
[312396784,1705858295987,-500.0,0.00041643,31]
[312396785,1705858295997,-500.0,0.00041643,31]
[312396786,1705858296007,-1020.8,0.00041643,31]
[312396787,1705858296016,-500.0,0.00041643,31]
[312396788,1705858296026,-500.0,0.00041643,31]
[312396789,1705858296035,-500.0,0.00041643,31]
[312396790,1705858296045,-500.0,0.00041643,31]
[312396791,1705858296058,-512.81762948,0.00041643,31]
[312396792,1705858296068,-674.71,0.00041643,31]
[312396793,1705858296078,-907.75,0.00041643,31]
[312396794,1705858296087,-2628.29,0.00041643,7]
[312396795,1705858296097,-500.0,0.00041643,31]
[312396796,1705858296107,-509.27022951,0.00041643,31]
[312396797,1705858296117,-510.28074873,0.00041643,31]
[312396798,1705858296127,-500.0,0.00041643,31]
[312396799,1705858296138,-500.0,0.00041643,31]
[312396800,1705858296157,-500.0,0.00041643,31]
[312396801,1705858296171,-500.0,0.00041643,31]
[312396802,1705858296190,-500.0,0.00041643,31]
[312396803,1705858296200,-500.0,0.00041643,31]
[312396804,1705858296210,-500.0,0.00041643,31]
[312396805,1705858296219,-500.0,0.00041643,31]
[312396806,1705858296229,-500.0,0.00041643,31]
[312396807,1705858296240,-500.0,0.00041643,31]
[312396808,1705858296249,-505.50493294,0.00041643,31]
[312396809,1705858296259,-802.51,0.00041643,31]
[312396810,1705858296269,-726.92,0.00041643,31]
[312396811,1705858296279,-500.0,0.00041643,31]
[312396812,1705858296288,-500.0,0.00041643,31]
[312396813,1705858296298,-500.0,0.00041643,31]
[312396814,1705858296308,-500.0,0.00041643,31]
[312396815,1705858296318,-500.0,0.00041643,31]
[312396816,1705858296327,-500.0,0.00041643,31]
[312396817,1705858296337,-3326.6,0.00041643,31]
[312396818,1705858296347,-919.56,0.00041643,31]
[312396819,1705858296356,-500.0,0.00041643,31]
[312396820,1705858296366,-500.0,0.00041643,31]
[312396821,1705858296376,-500.0,0.00041643,31]
[312396822,1705858296385,-500.0,0.00041643,31]
[312396823,1705858296395,-604.37,0.00041643,31]
[312396824,1705858296405,-563.35,0.00041643,31]
[312396825,1705858296415,-920.57,0.00041643,31]
[312396826,1705858296425,-719.21,0.00041643,31]
[312396827,1705858296436,-500.0,0.00041643,31]
[312396828,1705858296445,-814.86,0.00041643,31]
[312396829,1705858296455,-500.0,0.00041643,31]
[312396830,1705858296465,-500.0,0.00041643,31]
[312396831,1705858296474,-500.0,0.00041643,31]
[312396832,1705858296485,-973.6,0.00041643,31]
[312396833,1705858296495,-500.0,0.00041643,31]
[312396834,1705858296504,-500.0,0.00041643,31]
[312396835,1705858296514,-500.0,0.00041643,31]
[312396836,1705858296524,-642.1,0.00041643,31]
[312396837,1705858296534,-500.0,0.00041643,31]
[312396838,1705858296544,-500.0,0.00041643,31]
[312396839,1705858296553,-1551.87,0.00041643,31]
[312396840,1705858296563,-549.52,0.00041643,31]
[312396841,1705858296572,-500.0,0.00041643,7]
[312396842,1705858296582,-500.0,0.00041643,31]
[312396843,1705858296592,-500.0,0.00041643,31]
[312396844,1705858296601,-4046.77,0.00041643,31]
[312396845,1705858296611,-500.0,0.00041643,31]
[312396846,1705858296621,-500.0,0.00041643,31]
[312396847,1705858296630,-500.0,0.00041643,31]
[312396848,1705858296640,-500.0,0.00041643,31]
[312396849,1705858296650,-500.0,0.00041643,31]
[312396850,1705858296660,-500.0,0.00041643,31]
[312396851,1705858296669,-695.82,0.00041643,31]
[312396852,1705858296680,-500.0,0.00041643,31]
[312396853,1705858296690,-500.0,0.00041643,31]
[312396854,1705858296699,-769.33,0.00041643,31]
[312396855,1705858296711,-500.0,0.00041643,31]
[312396856,1705858296720,-700.79,0.00041643,31]
[312396857,1705858296730,-500.0,0.00041643,31]
[312396858,1705858296740,-500.0,0.00041643,31]
[312396859,1705858296752,-500.0,0.00041643,31]
[312396860,1705858296764,-745.29,0.00041643,31]
[312396861,1705858296774,-500.0,0.00041643,31]
[312396862,1705858296786,-7045.39,0.00041643,31]
[312396863,1705858296799,-500.0,0.00041643,31]
[312396864,1705858296809,-1262.27,0.00041643,31]
[312396865,1705858296820,-500.0,0.00041643,31]
[312396866,1705858296830,-500.0,0.00041643,31]
[312396867,1705858296840,-690.37,0.00041643,31]
[312396868,1705858296849,-504.77066267,0.00041643,31]
[312396869,1705858296861,-500.0,0.00041643,31]
[312396870,1705858296871,-520.83,0.00041643,31]
[312396871,1705858296881,-500.0,0.00041643,31]
[312396872,1705858296891,-500.0,0.00041643,31]
[312396873,1705858296901,-757.17,0.00041643,31]
[312396874,1705858296911,-5696.35,0.00041643,31]
[312396875,1705858296921,-353.81,0.00041643,31]
[312396876,1705858296931,-500.0,0.00041643,31]
[312396877,1705858296940,-1837.87,0.00041643,31]
[312396878,1705858296950,-500.0,0.00041643,31]
[312396879,1705858296960,-500.0,0.00041643,31]
[312396880,1705858296969,-500.0,0.00041643,31]
[312396881,1705858296979,-908.52,0.00041643,31]
[312396882,1705858296989,-500.0,0.00041643,31]
[312396883,1705858296999,-508.86478206,0.00041643,31]
[312396884,1705858297009,-500.0,0.00041643,31]
[312396885,1705858297019,-9649.82,0.00041643,31]
[312396886,1705858297029,-1916.53,0.00041643,31]
[312396887,1705858297039,-500.0,0.00041643,31]
[312396888,1705858297052,-500.0,0.00041643,31]
[312396889,1705858297067,-1240.43,0.00041643,31]
[312396890,1705858297077,-695.14,0.00041643,31]
[312396891,1705858297087,-492.63291604,0.00041643,31]
[312396892,1705858297098,-500.0,0.00041643,31]
[312396893,1705858297109,-500.0,0.00041643,31]
[312396894,1705858297118,-500.0,0.00041643,31]
[312396895,1705858297128,-1114.6,0.00041643,31]
[312396896,1705858297139,-1341.69,0.00041643,31]
[312396897,1705858297149,-500.0,0.00041643,31]
[312396898,1705858297158,-500.0,0.00041643,31]
[312396899,1705858297168,-921.33,0.00041643,31]
[312396900,1705858297178,-1113.57,0.00041643,31]
[312396901,1705858297188,-500.0,0.00041643,31]
[312396902,1705858297198,-5530.48,0.00041643,31]
[312396903,1705858297208,-500.0,0.00041643,31]
[312396904,1705858297217,-538.40728134,0.00041643,31]
[312396905,1705858297227,-500.0,0.00041643,31]
[312396906,1705858297237,-181.98816195,0.00041643,31]
[312396907,1705858297247,-793.66,0.00041643,31]
[312396908,1705858297259,-500.0,0.00041643,31]
[312396909,1705858297269,-795.91,0.00041643,31]
[312396910,1705858297279,-500.0,0.00041643,31]
[312396911,1705858297289,-500.0,0.00041643,31]
[312396912,1705858297299,-503.78730376,0.00041643,31]
[312396913,1705858297311,-500.0,0.00041643,31]
[312396914,1705858297321,-500.0,0.00041643,31]
[312396915,1705858297332,-1440.05,0.00041643,31]
[312396916,1705858297342,-1000.0,0.00041643,2]
[312396917,1705858297353,-3700.14,0.00041643,31]
[312396918,1705858297364,-2092.99,0.00041643,31]
[312396919,1705858297374,-500.0,0.00041643,31]
[312396920,1705858297384,-745.1,0.00041643,31]
[312396921,1705858297394,-10145.93,0.00041643,31]
[312396922,1705858297404,-1414.9,0.00041643,31]
[312396923,1705858297415,-500.0,0.00041643,31]
[312396924,1705858297424,-505.43,0.00041643,31]
[312396925,1705858297434,-500.0,0.00041643,31]
[312396926,1705858297444,-521.95,0.00041643,31]
[312396927,1705858297455,-500.0,0.00041643,31]
[312396928,1705858297465,-500.0,0.00041643,31]
[312396929,1705858297474,-500.0,0.00041643,31]
[312396930,1705858297484,-680.26,0.00041643,5]
[312396931,1705858297494,-909.92,0.00041643,31]
[312396932,1705858297504,-500.0,0.00041643,31]
[312396933,1705858297514,-647.36,0.00041643,31]
[312396934,1705858297524,-969.71,0.00041643,31]
[312396935,1705858297534,-4142.89,0.00041643,31]
[312396936,1705858297544,-1000.0,0.00041643,60]
[312396937,1705858297553,-500.0,0.00041643,31]
[312396938,1705858297563,-500.0,0.00041643,31]
[312396939,1705858297573,-500.0,0.00041643,31]
[312396940,1705858297583,-816.06,0.00041643,31]
[312396941,1705858297593,-2663.37,0.00041643,31]
[312396942,1705858297602,-184.12824066,0.00041643,31]
[312396943,1705858297611,-500.0,0.00041643,31]
[312396944,1705858297622,-500.0,0.00041643,31]
[312396945,1705858297632,-696.72,0.00041643,31]
[312396946,1705858297641,-525.38,0.00041643,31]
[312396947,1705858297651,-500.0,0.00041643,31]
[312396948,1705858297661,-764.09,0.00041643,31]
[312396949,1705858297673,-500.0,0.00041643,31]
[312396950,1705858297683,-500.0,0.00041643,31]
[312396951,1705858297694,-1574.71,0.00041643,31]
[312396952,1705858297704,-9891.3,0.00041643,31]
[312396953,1705858297713,-5145.07,0.00041643,31]
[312396954,1705858297725,-831.28,0.00041643,31]
[312396955,1705858297735,-932.94,0.00041643,31]
[312396956,1705858297745,-500.0,0.00041643,31]
[312396957,1705858297756,-1364.93,0.00041643,31]
[312396958,1705858297981,-500.0,0.00041643,31]
[312396959,1705858297998,-3404.67,0.00041643,31]
[312396960,1705858298010,-2645.34,0.00041643,31]
[312396961,1705858298020,-500.0,0.00041643,31]
[312396962,1705858298030,-735.01,0.00041643,31]
[312396963,1705858298040,-500.0,0.00041643,31]
[312396964,1705858298051,-500.0,0.00041643,31]
[312396965,1705858298066,-500.0,0.00041643,31]
[312396966,1705858298076,-1174.77,0.00041643,31]
[312396967,1705858298087,-425.90834753,0.00041643,31]
[312396968,1705858298099,-738.19,0.00041643,31]
[312396969,1705858298108,-500.0,0.00041643,31]
[312396970,1705858298118,-944.69,0.00041643,31]
[312396971,1705858298128,-14562.01,0.00041643,31]
[312396972,1705858298139,-1080.05,0.00041643,31]
[312396973,1705858298151,-1450.35,0.00041643,31]
[312396974,1705858298163,-653.64,0.00041643,31]
[312396975,1705858298174,-500.0,0.00041643,31]
[312396976,1705858298183,-500.0,0.00041643,31]
[312396977,1705858298194,-38083.32,0.00041643,31]
[312396978,1705858298203,-500.0,0.00041643,31]
[312396979,1705858298213,-772.68,0.00041643,31]
[312396980,1705858298225,-9951.76,0.00041643,31]
[312396981,1705858298235,-297.26235042,0.00041643,31]
[312396982,1705858298244,-996.84,0.00041643,31]
[312396983,1705858298255,-526.57,0.00041643,31]
[312396984,1705858298265,-500.0,0.00041643,31]
[312396985,1705858298274,-1180.64,0.00041643,31]
[312396986,1705858298284,-500.0,0.00041643,31]
[312396987,1705858298294,-500.0,0.00041643,31]
[312396988,1705858298304,-13566.67,0.00041643,31]
[312396989,1705858298314,-500.0,0.00041643,31]
[312396990,1705858298325,-500.0,0.00041643,31]
[312396991,1705858298335,-2702.04,0.00041643,31]
[312396992,1705858298346,-2370.4,0.00041643,31]
[312396993,1705858298356,-710.24,0.00041643,31]
[312396994,1705858298367,-500.0,0.00041643,31]
[312396995,1705858298377,-841.85,0.00041643,31]
[312396996,1705858298388,-650.75,0.00041643,31]
[312396997,1705858298398,-500.0,0.00041643,31]
[312396998,1705858298408,-500.0,0.00041643,31]
[312396999,1705858298418,-891.39,0.00041643,31]
[312397000,1705858298430,-500.0,0.00041643,31]
[312397001,1705858298444,-500.0,0.00041643,31]
[312397002,1705858298461,-500.0,0.00041643,31]
[312397003,1705858298473,-500.0,0.00041643,31]
[312397004,1705858298484,-500.0,0.00041643,31]
[312397005,1705858298495,-500.0,0.00041643,31]